fUST/lending_fUST_20250825
["ID","MTS","AMOUNT","RATE_DAILY","PERIOD"]
[381150474,1756083045179,-205.163984,0.00048,120]
[381150475,1756083045188,-151.0,0.00048,120]
[381150476,1756083045197,-151.0,0.00048,120]
[381150477,1756083045206,-151.0,0.00048,120]
[381150478,1756083045215,-151.0,0.00048,120]
[381150479,1756083045225,-151.0,0.00048,120]
[381150480,1756083045234,-199.088,0.00048,120]
[381150481,1756083045243,-151.0,0.00048,120]
[381150482,1756083045252,-205.163984,0.00048,120]
[381150483,1756083045261,-151.0,0.00048,120]
[381150484,1756083045271,-205.163984,0.00048,120]
[381150485,1756083045284,-2660.81,0.00048,7]
[381150486,1756083045293,-205.163984,0.00048,120]
[381150487,1756083045303,-8025.14,0.00048,14]
[381150488,1756083045312,-317.461268,0.00048,120]
[381150489,1756083045321,-317.461268,0.00048,120]
[381150490,1756083045330,-317.461268,0.00048,120]
[381150491,1756083045339,-317.461268,0.00048,120]
[381150492,1756083045349,-194.994437,0.00048,120]
[381150493,1756083045357,-504.563386,0.00048,30]
[381150494,1756083045367,-151.0,0.00048,120]
[381150495,1756083045376,-504.563386,0.00048,30]
[381150496,1756083045386,-504.563386,0.00048,30]
[381150497,1756083045399,-504.563386,0.00048,30]
[381150498,1756083045408,-151.0,0.00048,120]
[381150499,1756083045418,-151.0,0.00048,120]
[381150500,1756083045428,-151.0,0.00048,120]
[381150501,1756083045437,-151.0,0.00048,120]
[381150502,1756083045446,-151.0,0.00048,120]
[381150503,1756083045456,-151.0,0.00048,22]
[381150504,1756083045465,-215.609813,0.00048,15]
[381150505,1756083045475,-151.0,0.00048,28]
[381150506,1756083045484,-151.0,0.00048,21]
[381150507,1756083045493,-215.609813,0.00048,15]
[381150508,1756083045503,-215.609813,0.00048,15]
[381150509,1756083045513,-215.609813,0.00048,15]
[381150510,1756083045523,-151.0,0.00048,120]
[381150511,1756083045533,-151.0,0.00048,120]
[381150512,1756083045543,-151.0,0.00048,120]
[381150513,1756083045552,-1000.0,0.00048,120]
[381150514,1756083045561,-1000.0,0.00048,120]
[381150515,1756083045572,-1000.0,0.00048,120]
[381150516,1756083045582,-1000.0,0.00048,120]
[381150517,1756083045592,-1000.0,0.00048,120]
[381150518,1756083045601,-1000.0,0.00048,120]
[381150519,1756083045611,-1000.0,0.00048,120]
[381150520,1756083045620,-1000.0,0.00048,120]
[381150521,1756083045630,-1000.0,0.00048,120]
[381150522,1756083045640,-1000.0,0.00048,120]
[381150524,1756083045649,-1000.0,0.00048,120]
[381150526,1756083045658,-1000.0,0.00048,120]
[381150527,1756083045668,-914.982793,0.00048,120]
[381150528,1756083045678,-1000.0,0.00048,120]
[381150529,1756083045687,-341.751767,0.00048,120]
[381150530,1756083045697,-1000.0,0.00048,120]
[381150532,1756083045707,-1000.0,0.00048,120]
[381150533,1756083045716,-1000.0,0.00048,120]
[381150534,1756083045725,-1000.0,0.00048,120]
[381150535,1756083045734,-914.982793,0.00048,120]
[381150536,1756083045744,-1000.0,0.00048,120]
[381150537,1756083045753,-341.751767,0.00048,120]
[381150538,1756083045762,-1000.0,0.00048,120]
[381150539,1756083045772,-1000.0,0.00048,120]
[381150540,1756083045784,-157.0,0.00048,90]
[381150541,1756083045793,-1000.0,0.00048,120]
[381150542,1756083045802,-914.982793,0.00048,120]
[381150543,1756083045811,-1000.0,0.00048,120]
[381150544,1756083045821,-341.751767,0.00048,120]
[381150545,1756083045831,-1000.0,0.00048,120]
[381150546,1756083045840,-1000.0,0.00048,120]
[381150547,1756083045850,-1000.0,0.00048,120]
[381150548,1756083045859,-1000.0,0.00048,120]
[381150549,1756083045868,-1000.0,0.00048,120]
[381150550,1756083045878,-341.751767,0.00048,120]
[381150551,1756083046061,-1000.0,0.00048,120]
[381150552,1756083046072,-914.982793,0.00048,120]
[381150553,1756083046081,-1000.0,0.00048,120]
[381150554,1756083046091,-1000.0,0.00048,120]
[381150555,1756083046105,-1000.0,0.00048,120]
[381150556,1756083046114,-1000.0,0.00048,120]
[381150557,1756083046123,-1000.0,0.00048,120]
[381150558,1756083046133,-1000.0,0.00048,120]
[381150559,1756083046143,-151.0,0.00048,30]
[381150560,1756083046153,-529.17068775,0.00048,30]
[381150561,1756083046162,-2098.52449102,0.0004803,2]
[381150562,1756083046172,-199.0,0.00048082,32]
[381150563,1756083046181,-232.42214577,0.00048084,2]
[381150564,1756083046191,-11881.7109273,0.0004809,2]
[381150565,1756083046201,-194.47307488,0.00048137,120]
[381150566,1756083046210,-2098.52449102,0.0004818,2]
[381150567,1756083046220,-500.0,0.00048181,30]
[381150568,1756083046229,-500.0,0.00048218,120]
[381150569,1756083046239,-500.0,0.00048225,30]
[381150570,1756083046248,-20192.5644505,0.00048228,2]
[381150571,1756083046258,-151.751284,0.00048228,120]
[381150572,1756083046267,-151.0,0.00048228,120]
[381150573,1756083046277,-151.0,0.00048228,120]
[381150574,1756083046287,-151.0,0.00048228,120]
[381150575,1756083046296,-151.0,0.00048228,120]
[381150576,1756083046306,-151.0,0.00048228,120]
[381150577,1756083046315,-151.0,0.00048228,120]
[381150578,1756083046325,-151.0,0.00048228,120]
[381150579,1756083046334,-151.0,0.00048228,120]
[381150580,1756083046343,-151.0,0.00048228,120]
[381150581,1756083046353,-151.0,0.00048228,120]
[381150582,1756083046362,-151.0,0.00048228,120]
[381150583,1756083046372,-151.0,0.00048228,120]
[381150584,1756083046381,-151.0,0.00048228,120]
[381150585,1756083046391,-151.0,0.00048228,120]
[381150586,1756083046400,-151.0,0.00048228,120]
[381150587,1756083046409,-151.0,0.00048228,120]
[381150588,1756083046419,-151.0,0.00048228,120]
[381150589,1756083046428,-761.80698239,0.00048236,28]
[381150590,1756083046437,-160.0,0.00048246,2]
[381150591,1756083046447,-217.07852671,0.00048255,2]
[381150592,1756083046457,-160.658675,0.0004828,120]
[381150593,1756083046467,-160.658675,0.0004828,120]
[381150594,1756083046477,-160.658675,0.0004828,120]
[381150595,1756083046486,-160.658675,0.0004828,120]
[381150596,1756083046495,-160.37027,0.0004828,120]
[381150597,1756083046504,-160.37027,0.0004828,120]
[381150598,1756083046514,-160.37027,0.0004828,120]
[381150599,1756083046523,-160.37027,0.0004828,120]
[381150600,1756083046534,-151.0,0.0004828,120]
[381150601,1756083046543,-151.0,0.0004828,120]
[381150602,1756083046552,-151.0,0.0004828,120]
[381150603,1756083046562,-151.0,0.0004828,120]
[381150604,1756083046571,-151.0,0.0004828,120]
[381150605,1756083046581,-312.569554,0.0004828,120]
[381150606,1756083046590,-312.569554,0.0004828,120]
[381150607,1756083046600,-312.569554,0.0004828,120]
[381150608,1756083046608,-312.569554,0.0004828,120]
[381150609,1756083046618,-151.0,0.0004828,120]
[381150610,1756083046627,-151.0,0.0004828,120]
[381150611,1756083046636,-151.0,0.0004828,120]
[381150612,1756083046647,-151.0,0.0004828,120]
[381150613,1756083046656,-151.0,0.0004828,120]
[381150614,1756083046666,-151.0,0.0004828,120]
[381150615,1756083046676,-151.0,0.0004828,120]
[381150616,1756083046685,-151.0,0.0004828,120]
[381150617,1756083046696,-151.0,0.0004828,120]
[381150618,1756083046705,-151.0,0.0004828,120]
[381150620,1756083046714,-151.0,0.0004828,120]
[381150621,1756083046723,-253.921792,0.0004828,120]
[381150622,1756083046733,-844.67759735,0.0004828,30]
[381150623,1756083046743,-1007.99102026,0.0004829,61]
[381150624,1756083046752,-151.0,0.0004829,14]
[381150625,1756083046760,-151.0,0.0004829,120]
[381150626,1756083046770,-151.0,0.0004829,120]
[381150627,1756083046781,-151.0,0.0004829,120]
[381150628,1756083046790,-151.0,0.0004829,120]
[381150629,1756083046799,-151.0,0.0004829,120]
[381150630,1756083046810,-154.764557,0.0004829,120]
[381150631,1756083046819,-154.764557,0.0004829,120]
[381150633,1756083046828,-154.764557,0.0004829,120]
[381150634,1756083046838,-154.764557,0.0004829,120]
[381150635,1756083046848,-151.0,0.0004829,120]
[381150636,1756083046857,-151.0,0.0004829,120]
[381150637,1756083046866,-151.0,0.0004829,120]
[381150638,1756083046876,-151.0,0.0004829,120]
[381150639,1756083046885,-151.0,0.0004829,120]
[381150640,1756083046895,-151.0,0.0004829,120]
[381150641,1756083046904,-151.0,0.0004829,120]
[381150642,1756083046914,-151.0,0.0004829,120]
[381150643,1756083046923,-151.0,0.0004829,120]
[381150644,1756083046933,-151.0,0.0004829,120]
[381150645,1756083046943,-151.0,0.0004829,120]
[381150646,1756083046952,-151.0,0.0004829,120]
[381150647,1756083046961,-151.0,0.0004829,120]
[381150648,1756083046971,-151.452376,0.0004829,120]
[381150649,1756083046980,-151.0,0.0004829,120]
[381150650,1756083046989,-151.0,0.0004829,120]
[381150651,1756083046999,-151.0,0.0004829,120]
[381150652,1756083047009,-179.26104,0.0004829,120]
[381150653,1756083047018,-160.658675,0.0004829,120]
[381150654,1756083047028,-160.658675,0.0004829,120]
[381150655,1756083047038,-160.658675,0.0004829,120]
[381150656,1756083047046,-160.658675,0.0004829,120]
[381150657,1756083047055,-160.37027,0.0004829,120]
[381150658,1756083047065,-160.37027,0.0004829,120]
[381150659,1756083047074,-160.37027,0.0004829,120]
[381150660,1756083047084,-160.37027,0.0004829,120]
[381150661,1756083047095,-151.0,0.0004829,120]
[381150662,1756083047108,-151.0,0.0004829,120]
[381150663,1756083047117,-151.0,0.0004829,120]
[381150664,1756083047127,-151.0,0.0004829,120]
[381150665,1756083047137,-151.0,0.0004829,120]
[381150666,1756083047147,-312.569554,0.0004829,120]
[381150667,1756083047156,-312.569554,0.0004829,120]
[381150668,1756083047165,-312.569554,0.0004829,120]
[381150669,1756083047177,-312.569554,0.0004829,120]
[381150670,1756083047186,-151.0,0.0004829,120]
[381150671,1756083047195,-31.6396938,0.0004829,120]
[381150674,1756083048669,-529.17068775,0.00046575,120]
[381150675,1756083048679,-199.0,0.00046899,120]
[381150676,1756083048690,-1000.0,0.00048,120]
[381150677,1756083048699,-1000.0,0.00048,120]
[381150678,1756083048709,-1000.0,0.00048,120]
[381150679,1756083048718,-1000.0,0.00048,120]
[381150680,1756083048727,-1000.0,0.00048,120]
[381150681,1756083048737,-269.2726902,0.0004829,120]
[381150682,1756083048747,-151.0,0.0004829,120]
[381150683,1756083048756,-151.0,0.0004829,120]
[381150684,1756083048766,-151.0,0.0004829,120]
[381150685,1756083048775,-151.0,0.0004829,120]
[381150686,1756083048787,-151.0,0.0004829,120]
[381150687,1756083048796,-151.0,0.0004829,120]
[381150688,1756083048805,-146.51498154,0.0004829,120]
[381150695,1756083049265,-4.48501846,0.0004829,120]
[381150696,1756083049275,-151.0,0.0004829,120]
[381150697,1756083049286,-151.0,0.0004829,120]
[381150698,1756083049295,-151.0,0.0004829,120]
[381150699,1756083049305,-151.0,0.0004829,120]
[381150700,1756083049315,-151.0,0.0004829,120]
[381150701,1756083049324,-151.0,0.0004829,120]
[381150702,1756083049333,-178.290292,0.0004829,120]
[381150703,1756083049343,-114.13226002,0.0004829,120]
[381150706,1756083345120,200000.0,0.00030753,60]
[381150707,1756083453825,235.0,0.00027,3]
[381150708,1756083502976,163.942394,0.00013699,2]
[381150709,1756083503191,163.942394,0.00020187,2]
[381150710,1756083799361,158.0,0.00027,7]
[381150711,1756083879494,408.78127142,0.00020763,2]
[381150716,1756084046317,262.29169832,0.0002249,2]
[381150717,1756084046427,262.29169832,0.00025943,4]
[381150718,1756084046650,393.4375476,0.00025943,4]
[381150719,1756084047111,-213.0800325,0.00024216,2]
[381150720,1756084049183,-49.21166582,0.00024216,2]
[381150721,1756084080289,329.79,0.00018991,2]
[381150722,1756084151248,168.56029,0.000273,120]
[381150723,1756084167152,-163.942394,0.00026676,2]
[381150724,1756084167177,-262.29169832,0.00027669,8]
[381150725,1756084167201,-262.29169832,0.00029396,11]
[381150726,1756084167224,-158.0,0.000308,30]
[381150727,1756084167248,-262.29169832,0.00031123,15]
[381150728,1756084167269,-163.942394,0.00033165,2]
[381150729,1756084167289,-163.942394,0.00039654,2]
[381150730,1756084167310,-196.505465,0.00041184,2]
[381150731,1756084167330,-160.0,0.00043319,3]
[381150732,1756084167349,-157.71013,0.00043547,2]
[381150733,1756084167369,-402.51820485,0.00043843,2]
[381150734,1756084167389,-386.1456963,0.00043843,2]
[381150735,1756084170775,199.0,0.000307,30]
[381150736,1756084214848,388.84339008,0.00020763,2]
[381150737,1756084214907,340.23796648,0.0002249,2]
[381150784,1756084232740,-250.0,0.00030885,10]
[381150786,1756084232750,-403.978986,0.00030885,10]
[381150788,1756084232763,-158.0,0.00045,120]
[381150790,1756084232772,-160.0,0.00045955,4]
[381150792,1756084232781,-386.15,0.0004605,2]
[381150794,1756084232790,-163.942394,0.00046143,2]
[381150796,1756084232800,-154.229761,0.00046556,20]
[381150798,1756084232809,-300.0,0.00046575,120]
[381150800,1756084232819,-500.0,0.00046879,30]
[381150802,1756084232827,-154.229761,0.00047013,2]
[381150804,1756084232837,-199.0,0.00047397,30]
[381150806,1756084232846,-168.0,0.00047398,2]
[381150808,1756084232855,-168.0,0.00047844,2]
[381150810,1756084232864,-3318.84,0.00047898,6]
[381150812,1756084232873,-199.0,0.000479,120]
[381150814,1756084232882,-199.0,0.000479,120]
[381150816,1756084232891,-489.73306017,0.000479,28]
[381150818,1756084232901,-326.0,0.00047965,30]
[381150820,1756084232910,-326.0,0.00047965,30]
[381150822,1756084232919,-326.0,0.00047965,30]
[381150824,1756084232929,-326.0,0.00047965,30]
[381150826,1756084232938,-326.0,0.00047965,30]
[381150828,1756084232947,-326.0,0.00047965,30]
[381150830,1756084232956,-500.0,0.00047989,120]
[381150832,1756084232966,-6342.15,0.0004799,120]
[381150834,1756084232976,-827.32859791,0.0004799,4]
[381150927,1756084236068,199.0,0.00030785,10]
[381150929,1756084238330,-19567.46138629,0.0004799,4]
[381150930,1756084238340,-2112.86,0.0004799,10]
[381150931,1756084238350,-1760.71,0.0004799,10]
[381150932,1756084238359,-500.0,0.00047999,120]
[381150933,1756084238369,-500.0,0.00047999,120]
[381150934,1756084238378,-500.0,0.00047999,120]
[381150935,1756084238388,-500.0,0.00047999,120]
[381150937,1756084238397,-500.0,0.00047999,120]
[381150938,1756084238407,-500.0,0.00047999,120]
[381150939,1756084238415,-500.0,0.00047999,120]
[381150940,1756084238424,-32384.38946578,0.00048,120]
[381150942,1756084238437,-40399.68672873,0.00048,120]
[381150971,1756084240487,-199.0,0.000449,120]
[381150972,1756084240496,-13945.99999995,0.00048,120]
[381150973,1756084240509,-1835.03509532,0.00048,120]
[381150974,1756084240519,-157.0,0.00048,120]
[381150975,1756084240528,-498.15,0.00048,120]
[381150976,1756084240538,-424.34595197,0.00048058,14]
[381150977,1756084240547,-800.0,0.00048062,14]
[381150978,1756084240556,-800.0,0.00048079,14]
[381150979,1756084240566,-199.0,0.00048082,32]
[381150980,1756084240575,-3841.3110538,0.00048084,2]
[381150981,1756084240584,-14017.15789891,0.0004809,4]
[381151031,1756084243597,-26772.42206939,0.0004809,4]
[381151032,1756084243607,-800.0,0.00048098,14]
[381151033,1756084243617,-800.0,0.00048098,14]
[381151034,1756084243625,-154.98485042,0.00048099,120]
[381151035,1756084243636,-500.0,0.00048099,120]
[381151036,1756084243645,-500.0,0.00048099,120]
[381151037,1756084243655,-271.2471087,0.00048099,120]
[381151038,1756084243665,-500.0,0.00048099,120]
[381151039,1756084243674,-500.0,0.00048099,120]
[381151040,1756084243684,-500.0,0.00048099,120]
[381151041,1756084243694,-500.0,0.00048099,120]
[381151042,1756084243704,-500.0,0.00048099,120]
[381151044,1756084243713,-500.0,0.00048099,120]
[381151046,1756084243722,-79981.34597149,0.000481,120]
[381151325,1756084289920,157.71013,0.00043151,2]
[381151326,1756084299676,484.31940693,0.00030885,4]
[381151327,1756084383600,216.52868792,0.0002249,2]
[381151328,1756084383716,216.52868792,0.00025943,4]
[381151329,1756084383939,324.79303194,0.00025943,4]
[381151330,1756084385742,-186.036106,0.00024216,2]
[381151331,1756084391212,-30.49258192,0.00024216,2]
[381151333,1756084549968,285.15234168,0.00020763,2]
[381151334,1756084550023,285.15234168,0.0002249,2]
[381151335,1756084550134,213.86425647,0.00025943,4]
[381151336,1756084550882,-249.58838127,0.00024216,2]
[381151338,1756084618213,159.79417,0.00013699,2]
[381151339,1756084618512,159.79417,0.00020548,2]
[381151340,1756084722221,201.62411416,0.0002249,2]
[381151341,1756084722316,352.84219991,0.0002249,2]
[381151342,1756084723113,-152.0,0.00024216,2]
[381151343,1756084887348,380.49326712,0.00020763,2]
[381151344,1756085056486,310.30741971,0.00020763,2]
[381151348,1756085159141,-241.578687,0.00025778,2]
[381151349,1756085159163,-154.04429948,0.00026044,2]
[381151350,1756085159185,-159.79417,0.00027397,2]
[381151351,1756085159207,-159.79417,0.00034247,2]
[381151352,1756085159229,-320.0,0.0004016,5]
[381151353,1756085159251,-1651.39835434,0.00040161,2]
[381151354,1756085224031,302.41851185,0.00020763,2]
[381151360,1756085325680,500.55,0.00021,2]
[381151361,1756085328568,7012.04078814,0.00019063,2]
[381151362,1756085352445,-1951.34513231,0.00025,2]
[381151363,1756085352466,-4780.0,0.00025,2]
[381151364,1756085352487,-183.141763,0.00029222,2]
[381151365,1756085352506,-715.22334226,0.0003,120]
[381151366,1756085352525,-403.18919427,0.0003,10]
[381151367,1756085352544,-202.72230618,0.0003,120]
[381151368,1756085352563,-727.5207651,0.0003,120]
[381151369,1756085352582,-182.90401557,0.0003,120]
[381151370,1756085352600,-242.46439042,0.0003,120]
[381151371,1756085352619,-515.1216964,0.0003,120]
[381151372,1756085352637,-375.50290563,0.0003,120]
[381151373,1756085352656,-417.00880825,0.0003,30]
[381151374,1756085352676,-2353.04,0.00030887,10]
[381151375,1756085352696,-1960.86,0.00030887,10]
[381151376,1756085352715,-1634.05,0.00030887,10]
[381151377,1756085352737,-500.0,0.00030896,2]
[381151378,1756085352756,-500.0,0.00030896,2]
[381151379,1756085352776,-500.0,0.00030896,2]
[381151380,1756085352796,-500.0,0.00030896,2]
[381151381,1756085352816,-500.0,0.00030896,2]
[381151382,1756085352836,-489.8729761,0.00030896,2]
[381151383,1756085352856,-500.0,0.00030896,2]
[381151384,1756085352875,-194.6204228,0.00030896,2]
[381151385,1756085352896,-160.72698511,0.00030896,2]
[381151386,1756085352917,-452.63101483,0.00030896,2]
[381151387,1756085352937,-500.0,0.00030896,2]
[381151388,1756085352957,-500.0,0.00030896,2]
[381151389,1756085352977,-500.0,0.00030896,2]
[381151390,1756085352996,-1041.73833797,0.00030896,2]
[381151391,1756085353016,-6420.12,0.000309,7]
[381151392,1756085353037,-2394.73,0.000309,7]
[381151393,1756085353056,-160.0,0.00040149,2]
[381151394,1756085353076,-1200.0,0.0004016,5]
[381151395,1756085353096,-8348.60164566,0.00040161,2]
[381151396,1756085353116,-159.79417,0.00041096,2]
[381151397,1756085356924,152.84416905,0.00030797,2]
[381151398,1756085358959,357.46583722,0.00030797,2]
[381151399,1756085385581,1361.71,0.00030887,10]
[381151400,1756085391049,324.11872728,0.0002249,2]
[381151401,1756085391102,324.11872728,0.00024216,2]
[381151402,1756085391137,324.11872728,0.00027669,8]
[381151403,1756085391173,324.11872728,0.00031123,15]
[381151404,1756085391209,486.17809094,0.00025943,4]
[381151405,1756085391258,324.11872728,0.00025943,4]
[381151406,1756085391323,324.11872728,0.00029396,11]
[381151407,1756085396139,1134.76,0.00030887,10]
[381151408,1756085398792,519.80448861,0.000309,7]
[381151409,1756085398815,276.68523222,0.000309,7]
[381151410,1756085398837,4981.61027917,0.000309,7]
[381151411,1756085410327,570.38914948,0.00030887,10]
[381151412,1756085411387,157.0125918,0.00030897,30]
[381151413,1756085415234,234.99148327,0.00027,3]
[381151414,1756085421550,588.24,0.00030897,120]
[381151415,1756085431253,178.81156038,0.00027,3]
[381151418,1756085431997,-384.79085052,0.00030887,10]
[381151420,1756085432007,-448.78228443,0.00030897,20]
[381151421,1756085432019,-49072.06319498,0.00030897,20]
[381151422,1756085432030,-6629.26828219,0.00030897,20]
[381151512,1756085437759,-199.0,0.00030787,10]
[381151514,1756085437770,-500.0,0.00030896,2]
[381151515,1756085437779,-500.0,0.00030896,2]
[381151516,1756085437789,-500.0,0.00030896,2]
[381151517,1756085437799,-598.01152555,0.00030896,2]
[381151518,1756085437808,-355.17835996,0.00030896,2]
[381151519,1756085437819,-177.53049483,0.00030897,20]
[381151520,1756085437830,-910.43206982,0.00030897,20]
[381151521,1756085437841,-2245.6358324,0.00030897,20]
[381151522,1756085437852,-1503.4924096,0.00030897,20]
[381151523,1756085437864,-99725.1075808,0.00030897,20]
[381151524,1756085437875,-33858.02526373,0.00030897,20]
[381151525,1756085437886,-2551.0474811,0.00030897,20]
[381151538,1756085439755,-2467.23447778,0.00030897,20]
[381151540,1756085439768,-882.03523808,0.00030897,20]
[381151542,1756085439778,-752.72382974,0.00030897,20]
[381151544,1756085439791,-3456.77713982,0.00030897,20]
[381151547,1756085439802,-374.27816399,0.00030897,20]
[381151552,1756085439843,-684.51880517,0.00030897,20]
[381151705,1756085445946,-225.78713404,0.00027197,2]
[381151707,1756085445956,-225.78713404,0.00027197,2]
[381151709,1756085445965,-5199.7796711,0.00030897,20]
[381151711,1756085445976,-9448.02284316,0.00030897,20]
[381151713,1756085445987,-36492.19406657,0.00030897,20]
[381151722,1756085446057,-169.34035053,0.00024997,2]
[381151724,1756085446067,-476.52801883,0.00030897,20]
[381151900,1756085529079,167.344001,0.00013699,2]
[381151901,1756085529289,167.344001,0.00022505,2]
[381151902,1756085562505,208.29157251,0.000199,2]
[381151903,1756085562566,208.29157247,0.00021627,2]
[381151904,1756085562657,208.29157247,0.00023353,2]
[381151905,1756085562703,208.29157247,0.00026806,6]
[381151910,1756085732387,217.49702416,0.000199,2]
[381151911,1756085732660,217.49702397,0.00026806,6]
[381151912,1756085732698,217.49702397,0.00023353,2]
[381151913,1756085732938,217.49702397,0.00021627,2]
[381151915,1756085835748,-217.49702397,0.0002508,2]
[381151916,1756085883570,167.38,0.00018991,120]
[381151917,1756085884063,167.38,0.00018991,120]
[381151918,1756085884915,167.37,0.00018991,120]
[381151919,1756085900517,163.20246085,0.0002249,2]
[381151920,1756085900548,217.94193801,0.0002249,2]
[381151921,1756085900657,324.58606199,0.00024216,2]
[381151922,1756085900860,381.14439886,0.00025943,4]
[381151923,1756086014225,151.0,0.000241,2]
[381151924,1756086068886,382.42730574,0.0002249,2]
[381151925,1756086069417,382.42730574,0.00025943,4]
[381151928,1756086244678,331.4369983,0.0002249,2]
[381151929,1756086244902,331.4369983,0.00025943,4]
[381151931,1756086345114,-331.4369983,0.00024216,2]
[381151932,1756086345134,-37.27393812,0.00027397,7]
[381151940,1756086421186,309.9120638,0.0002249,2]
[381151941,1756086421491,309.9120638,0.00025943,4]
[381151957,1756086522270,451.417,0.00027397,120]
[381151959,1756086553120,-309.9120638,0.00024216,2]
[381151960,1756086553150,-309.9120638,0.00027669,8]
[381151961,1756086553170,-1000.0,0.0002882,30]
[381151962,1756086553191,-300.0,0.00029087,2]
[381151963,1756086553211,-10000.0,0.00029088,2]
[381151964,1756086553238,-309.9120638,0.00029396,11]
[381151965,1756086553260,-380.0,0.0002969,2]
[381151966,1756086553281,-255.0,0.0002969,2]
[381151967,1756086553301,-298.81,0.00030879,7]
[381151968,1756086553324,-331.63957169,0.00030899,2]
[381151969,1756086553344,-522.43064655,0.00030899,2]
[381151970,1756086553366,-500.0,0.00030899,2]
[381151971,1756086553388,-500.0,0.00030899,2]
[381151972,1756086553410,-377.83818455,0.00030899,2]
[381151973,1756086553432,-157.0,0.00031,120]
[381151974,1756086553459,-309.9120638,0.00031123,15]
[381151975,1756086553482,-11058.8081696,0.00031207,2]
[381151976,1756086553503,-6932.1938065,0.00031207,2]
[381151977,1756086553526,-167.344001,0.00031311,2]
[381151978,1756086553547,-420.0,0.00031379,2]
[381151979,1756086553572,-300.0,0.00031513,20]
[381151980,1756086553596,-300.0,0.00031513,20]
[381151981,1756086553616,-160.0,0.0003219,2]
[381151982,1756086553638,-160.0,0.0003219,2]
[381151983,1756086553658,-217.07852671,0.0003219,2]
[381151984,1756086553678,-160.0,0.0003219,2]
[381151985,1756086553699,-500.0,0.00032776,120]
[381151986,1756086553720,-167.92,0.00032776,120]
[381151987,1756086553742,-167.92,0.00032776,120]
[381151988,1756086553763,-167.92,0.00032776,120]
[381151989,1756086553785,-167.92,0.00032776,120]
[381151990,1756086553811,-309.9120638,0.00032849,19]
[381151991,1756086553836,-309.91206403,0.00032849,19]
[381151992,1756086553858,-500.0,0.00032876,120]
[381151993,1756086553880,-587.0,0.00033852,2]
[381151994,1756086553900,-500.0,0.0003452,120]
[381151995,1756086553927,-309.9120638,0.00034576,23]
[381151996,1756086553948,-2467.5536379,0.00035376,2]
[381151997,1756086553968,-1546.7815142,0.00035376,2]
[381151998,1756086553989,-500.0,0.0003595,5]
[381151999,1756086554009,-514.91450767,0.0003595,5]
[381152000,1756086554030,-500.0,0.00036164,120]
[381152001,1756086554060,-309.9120638,0.00036302,26]
[381152002,1756086554081,-550.5856384,0.00036306,2]
[381152003,1756086554101,-345.1336069,0.00036306,2]
[381152004,1756086554121,-507.94210207,0.00036498,5]
[381152005,1756086554145,-514.90706591,0.00036519,2]
[381152006,1756086554165,-823.0,0.00036519,2]
[381152007,1756086554185,-200.0,0.00037026,120]
[381152008,1756086554204,-500.0,0.00037808,120]
[381152009,1756086554231,-309.9120638,0.00038029,30]
[381152010,1756086554251,-500.0,0.00039452,120]